fUSD/lending_fUSD_20240718
["ID","MTS","AMOUNT","RATE_DAILY","PERIOD"]
[332497598,1721274679851,-968.3862393,0.00022,10]
[332497599,1721274679861,-6728.24846558,0.00022,4]
[332497600,1721274679871,-3271.75153442,0.00022,4]
[332497601,1721274679881,-152.46046607,0.00022098,2]
[332497602,1721274679894,-500.0,0.00022191,2]
[332497603,1721274679904,-489.23725698,0.00022191,2]
[332497604,1721274679914,-500.0,0.00022191,2]
[332497605,1721274679928,-200.0,0.00022191,2]
[332497606,1721274679938,-615.06917784,0.00022191,2]
[332497607,1721274679947,-504.95607588,0.00022191,2]
[332497608,1721274679957,-169.79999494,0.00022191,2]
[332497609,1721274679968,-500.0,0.00022191,2]
[332497610,1721274679978,-500.0,0.00022191,2]
[332497611,1721274679988,-500.0,0.00022191,2]
[332497612,1721274679998,-500.0,0.00022191,2]
[332497613,1721274680008,-500.0,0.00022191,2]
[332497614,1721274680019,-818.75,0.00022191,2]
[332497615,1721274680029,-299.45786781,0.00022191,2]
[332497616,1721274680039,-540.77,0.00022191,2]
[332497617,1721274680049,-521.74,0.00022191,2]
[332497618,1721274680058,-500.0,0.00022191,2]
[332497619,1721274680068,-585.5578273,0.00022191,2]
[332497620,1721274680078,-503.8544358,0.00022191,2]
[332497621,1721274680088,-566.99,0.00022191,2]
[332497622,1721274680098,-738.9,0.00022191,2]
[332497623,1721274680108,-500.0,0.00022191,2]
[332497624,1721274680117,-500.0,0.00022191,2]
[332497625,1721274680127,-511.87610097,0.00022191,2]
[332497626,1721274680136,-500.0,0.00022191,2]
[332497627,1721274680147,-511.39329351,0.00022191,2]
[332497628,1721274680156,-712.74,0.00022191,2]
[332497629,1721274680166,-805.54,0.00022191,2]
[332497630,1721274680175,-508.93116462,0.00022191,2]
[332497631,1721274680185,-1011.47,0.00022191,2]
[332497632,1721274680195,-500.0,0.00022191,2]
[332497633,1721274680205,-500.0,0.00022191,2]
[332497634,1721274680215,-500.0,0.00022191,2]
[332497635,1721274680224,-500.0,0.00022191,2]
[332497636,1721274680233,-500.0,0.00022191,2]
[332497637,1721274680243,-500.0,0.00022191,2]
[332497638,1721274680252,-500.0,0.00022191,2]
[332497639,1721274680262,-502.04798108,0.00022191,2]
[332497640,1721274680271,-500.0,0.00022191,2]
[332497641,1721274680281,-500.0,0.00022191,2]
[332497642,1721274680291,-500.0,0.00022191,2]
[332497643,1721274680301,-500.0,0.00022191,2]
[332497644,1721274680311,-529.89,0.00022191,2]
[332497645,1721274680320,-513.7148873,0.00022191,2]
[332497646,1721274680329,-500.0,0.00022191,2]
[332497647,1721274680339,-500.0,0.00022191,2]
[332497648,1721274680348,-234.63460234,0.00022191,2]
[332497649,1721274680358,-511.81620038,0.00022191,2]
[332497650,1721274680368,-547.82754398,0.00022191,2]
[332497651,1721274680378,-500.0,0.00022191,2]
[332497652,1721274680387,-500.0,0.00022191,2]
[332497653,1721274680398,-500.0,0.00022191,2]
[332497654,1721274680407,-500.0,0.00022191,2]
[332497655,1721274680417,-581.44,0.00022191,2]
[332497656,1721274680427,-500.0,0.00022191,2]
[332497657,1721274680436,-500.0,0.00022191,2]
[332497658,1721274680446,-500.0,0.00022191,2]
[332497659,1721274680456,-272.54631607,0.00022191,2]
[332497660,1721274680467,-502.39,0.00022191,2]
[332497661,1721274680476,-511.37866095,0.00022191,2]
[332497662,1721274680486,-500.0,0.00022191,2]
[332497663,1721274680495,-500.0,0.00022191,2]
[332497664,1721274680505,-500.0,0.00022191,2]
[332497665,1721274680515,-500.0,0.00022191,2]
[332497666,1721274680524,-520.9,0.00022191,2]
[332497667,1721274680533,-503.44532308,0.00022191,2]
[332497668,1721274680543,-500.0,0.00022191,2]
[332497669,1721274680553,-505.12441603,0.00022191,2]
[332497670,1721274680562,-500.0,0.00022191,2]
[332497671,1721274680572,-500.0,0.00022191,2]
[332497672,1721274680582,-500.0,0.00022191,2]
[332497673,1721274680592,-973.37,0.00022191,2]
[332497674,1721274680614,-500.0,0.00022191,2]
[332497675,1721274680623,-1076.23,0.00022191,2]
[332497676,1721274680633,-500.0,0.00022191,2]
[332497677,1721274680643,-509.98454837,0.00022191,2]
[332497678,1721274680657,-500.0,0.00022191,2]
[332497679,1721274680667,-500.0,0.00022191,2]
[332497680,1721274680678,-500.0,0.00022191,2]
[332497681,1721274680687,-500.0,0.00022191,2]
[332497682,1721274680699,-500.0,0.00022191,2]
[332497683,1721274680708,-500.0,0.00022191,2]
[332497684,1721274680718,-616.41,0.00022191,2]
[332497685,1721274680730,-505.39532201,0.00022191,2]
[332497686,1721274680740,-793.18,0.00022191,2]
[332497687,1721274680750,-500.0,0.00022191,2]
[332497688,1721274680759,-560.96,0.00022191,2]
[332497689,1721274680770,-500.0,0.00022191,2]
[332497690,1721274680779,-500.0,0.00022191,2]
[332497691,1721274680789,-647.77,0.00022191,2]
[332497692,1721274680798,-504.22252674,0.00022191,2]
[332497693,1721274680808,-504.4,0.00022191,2]
[332497694,1721274680818,-502.99062194,0.00022191,2]
[332497695,1721274680828,-500.0,0.00022191,2]
[332497696,1721274680838,-725.9,0.00022191,2]
[332497697,1721274680848,-508.38842043,0.00022191,2]
[332497698,1721274680858,-504.85628904,0.00022191,2]
[332497699,1721274680867,-500.0,0.00022191,2]
[332497700,1721274680877,-500.0,0.00022191,2]
[332497701,1721274680887,-500.0,0.00022191,2]
[332497702,1721274680898,-500.0,0.00022191,2]
[332497703,1721274680908,-1205.78,0.00022191,2]
[332497704,1721274680918,-980.23,0.00022191,2]
[332497705,1721274680928,-500.0,0.00022191,2]
[332497706,1721274680937,-500.0,0.00022191,2]
[332497707,1721274680947,-500.0,0.00022191,2]
[332497708,1721274680957,-500.0,0.00022191,2]
[332497709,1721274680967,-500.0,0.00022191,2]
[332497710,1721274680977,-500.0,0.00022191,2]
[332497711,1721274680987,-196.22131671,0.00022191,2]
[332497712,1721274681181,-455.34275201,0.00022191,2]
[332497713,1721274681197,-1674.25,0.00022191,2]
[332497714,1721274681207,-500.0,0.00022191,2]
[332497715,1721274681216,-538.64,0.00022191,2]
[332497716,1721274681225,-500.0,0.00022191,2]
[332497717,1721274681234,-539.44,0.00022191,2]
[332497718,1721274681243,-500.0,0.00022191,2]
[332497719,1721274681252,-500.0,0.00022191,2]
[332497720,1721274681261,-500.0,0.00022191,2]
[332497721,1721274681271,-500.0,0.00022191,2]
[332497722,1721274681280,-500.0,0.00022191,2]
[332497723,1721274681289,-500.0,0.00022191,2]
[332497724,1721274681298,-500.0,0.00022191,2]
[332497725,1721274681307,-252.77526323,0.00022191,2]
[332497726,1721274681316,-500.0,0.00022191,2]
[332497727,1721274681325,-500.0,0.00022191,2]
[332497728,1721274681334,-505.57634252,0.00022191,2]
[332497729,1721274681344,-500.0,0.00022191,2]
[332497730,1721274681354,-1106.76,0.00022191,2]
[332497731,1721274681363,-622.02,0.00022191,2]
[332497732,1721274681372,-500.0,0.00022191,2]
[332497733,1721274681381,-500.0,0.00022191,2]
[332497734,1721274681390,-500.0,0.00022191,2]
[332497735,1721274681400,-626.01,0.00022191,2]
[332497736,1721274681409,-187.61068846,0.00022191,2]
[332497737,1721274681418,-1258.29,0.00022191,2]
[332497738,1721274681427,-500.0,0.00022191,2]
[332497739,1721274681436,-509.8098409,0.00022191,2]
[332497740,1721274681445,-541.75,0.00022191,2]
[332497741,1721274681454,-594.74,0.00022191,2]
[332497742,1721274681463,-1320.7,0.00022191,2]
[332497743,1721274681472,-500.0,0.00022191,2]
[332497744,1721274681483,-500.0,0.00022191,2]
[332497745,1721274681493,-500.0,0.00022191,2]
[332497746,1721274681502,-537.02,0.00022191,2]
[332497747,1721274681511,-500.0,0.00022191,2]
[332497748,1721274681520,-510.18398849,0.00022191,2]
[332497749,1721274681529,-500.0,0.00022191,2]
[332497750,1721274681538,-500.0,0.00022191,2]
[332497751,1721274681548,-500.0,0.00022191,2]
[332497752,1721274681557,-500.0,0.00022191,2]
[332497753,1721274681566,-257.36152834,0.00022191,2]
[332497754,1721274681576,-500.0,0.00022191,2]
[332497755,1721274681584,-500.0,0.00022191,2]
[332497756,1721274681594,-500.0,0.00022191,2]
[332497757,1721274681604,-1011.04,0.00022191,2]
[332497758,1721274681613,-505.22124675,0.00022191,2]
[332497759,1721274681622,-505.74607276,0.00022191,2]
[332497760,1721274681631,-511.89461133,0.00022191,2]
[332497761,1721274681641,-500.0,0.00022191,2]
[332497762,1721274681654,-503.56915484,0.00022191,2]
[332497763,1721274681663,-500.0,0.00022191,2]
[332497764,1721274681673,-500.0,0.00022191,2]
[332497765,1721274681683,-500.0,0.00022191,2]
[332497766,1721274681693,-500.0,0.00022191,2]
[332497767,1721274681703,-500.0,0.00022191,2]
[332497768,1721274681712,-500.0,0.00022191,2]
[332497769,1721274681721,-507.92470724,0.00022191,2]
[332497770,1721274681732,-500.0,0.00022191,2]
[332497771,1721274681741,-500.0,0.00022191,2]
[332497772,1721274681750,-500.0,0.00022191,2]
[332497773,1721274681759,-500.0,0.00022191,2]
[332497774,1721274681769,-500.0,0.00022191,2]
[332497775,1721274681778,-178.13165021,0.00022191,2]
[332497776,1721274681788,-500.0,0.00022191,2]
[332497777,1721274681797,-500.0,0.00022191,2]
[332497778,1721274681806,-509.8808717,0.00022191,2]
[332497779,1721274681815,-512.16920786,0.00022191,2]
[332497780,1721274681825,-500.0,0.00022191,2]
[332497781,1721274681834,-896.75,0.00022191,2]
[332497782,1721274681843,-219.79614388,0.00022191,2]
[332497783,1721274681853,-378.30893449,0.00022191,2]
[332497784,1721274681863,-488.37258429,0.00022191,2]
[332497785,1721274681872,-500.0,0.00022191,2]
[332497786,1721274681881,-500.0,0.00022191,2]
[332497787,1721274681891,-1409.64,0.00022191,2]
[332497788,1721274681901,-500.0,0.00022191,2]
[332497789,1721274681911,-557.81087982,0.00022191,2]
[332497790,1721274681920,-500.0,0.00022191,2]
[332497791,1721274681929,-500.0,0.00022191,2]
[332497792,1721274681939,-500.0,0.00022191,2]
[332497793,1721274681948,-1095.09,0.00022191,2]
[332497794,1721274681957,-500.0,0.00022191,2]
[332497795,1721274681966,-871.45,0.00022191,2]
[332497796,1721274681975,-500.0,0.00022191,2]
[332497797,1721274681984,-500.0,0.00022191,2]
[332497798,1721274681993,-513.1739457,0.00022191,2]
[332497799,1721274682003,-504.43727306,0.00022191,2]
[332497800,1721274682012,-500.0,0.00022191,2]
[332497801,1721274682021,-1121.33,0.00022191,2]
[332497802,1721274682031,-1311.63,0.00022191,2]
[332497803,1721274682040,-500.0,0.00022191,2]
[332497804,1721274682050,-507.54697752,0.00022191,2]
[332497805,1721274682060,-510.08490363,0.00022191,2]
[332497806,1721274682069,-500.0,0.00022191,2]
[332497807,1721274682079,-500.0,0.00022191,2]
[332497808,1721274682088,-500.0,0.00022191,2]
[332497809,1721274682097,-514.50050935,0.00022191,2]
[332497810,1721274682106,-970.12,0.00022191,2]
[332497811,1721274682115,-500.0,0.00022191,2]
[332497812,1721274682125,-500.0,0.00022191,2]
[332497813,1721274682134,-500.0,0.00022191,2]
[332497814,1721274682145,-500.0,0.00022191,2]
[332497815,1721274682154,-500.0,0.00022191,2]
[332497816,1721274682163,-844.33,0.00022191,2]
[332497817,1721274682173,-500.0,0.00022191,2]
[332497818,1721274682183,-587.86,0.00022191,2]
[332497819,1721274682193,-500.0,0.00022191,2]
[332497820,1721274682204,-500.0,0.00022191,2]
[332497821,1721274682213,-520.32,0.00022191,2]
[332497822,1721274682223,-511.37831163,0.00022191,2]
[332497823,1721274682235,-500.0,0.00022191,2]
[332497824,1721274682245,-500.0,0.00022191,2]
[332497825,1721274682255,-372.67406737,0.00022191,2]
[332497826,1721274682265,-500.0,0.00022191,2]
[332497827,1721274682274,-500.0,0.00022191,2]
[332497828,1721274682283,-2191.14,0.00022191,2]
[332497829,1721274682292,-524.03,0.00022191,2]
[332497830,1721274682301,-500.0,0.00022191,2]
[332497831,1721274682310,-521.61673082,0.00022191,3]
[332497832,1721274682320,-500.0,0.00022191,2]
[332497833,1721274682329,-500.0,0.00022191,2]
[332497834,1721274682338,-500.0,0.00022191,2]
[332497835,1721274682348,-752.53,0.00022191,2]
[332497836,1721274682359,-505.61747521,0.00022191,2]
[332497837,1721274682368,-396.37554186,0.00022191,2]
[332497838,1721274682377,-500.0,0.00022191,2]
[332497839,1721274682386,-500.0,0.00022191,2]
[332497840,1721274682397,-500.0,0.00022191,2]
[332497841,1721274682406,-500.0,0.00022191,2]
[332497842,1721274682416,-500.0,0.00022191,2]
[332497843,1721274682425,-860.04,0.00022191,2]
[332497844,1721274682434,-502.55397237,0.00022191,2]
[332497845,1721274682443,-564.17,0.00022191,2]
[332497846,1721274682453,-500.0,0.00022191,2]
[332497847,1721274682462,-500.0,0.00022191,2]
[332497848,1721274682471,-500.0,0.00022191,2]
[332497849,1721274682480,-1501.53,0.00022191,2]
[332497850,1721274682490,-503.02429261,0.00022191,2]
[332497851,1721274682499,-500.0,0.00022191,2]
[332497852,1721274682508,-500.0,0.00022191,2]
[332497853,1721274682517,-500.0,0.00022191,2]
[332497854,1721274682527,-500.0,0.00022191,2]
[332497855,1721274682536,-500.0,0.00022191,2]
[332497856,1721274682545,-500.0,0.00022191,2]
[332497857,1721274682556,-990.67,0.00022191,2]
[332497858,1721274682565,-500.0,0.00022191,2]
[332497859,1721274682575,-509.02744243,0.00022191,2]
[332497860,1721274682584,-1782.3,0.00022191,2]
[332497861,1721274682593,-634.09,0.00022191,2]
[332497862,1721274682602,-1097.42,0.00022191,2]
[332497863,1721274682611,-500.0,0.00022191,2]
[332497864,1721274682621,-545.62,0.00022191,2]
[332497865,1721274682630,-500.0,0.00022191,2]
[332497866,1721274682641,-518.94095139,0.00022191,2]
[332497867,1721274682654,-500.0,0.00022191,2]
[332497868,1721274682663,-500.0,0.00022191,2]
[332497869,1721274682672,-503.09644043,0.00022191,2]
[332497870,1721274682682,-506.30713564,0.00022191,2]
[332497871,1721274682691,-500.0,0.00022191,2]
[332497872,1721274682700,-500.0,0.00022191,2]
[332497873,1721274682710,-503.25500766,0.00022191,2]
[332497874,1721274682719,-879.85,0.00022191,2]
[332497875,1721274682730,-500.0,0.00022191,2]
[332497876,1721274682740,-500.0,0.00022191,2]
[332497877,1721274682750,-1456.1,0.00022191,2]
[332497878,1721274682759,-505.61216046,0.00022191,2]
[332497879,1721274682768,-500.0,0.00022191,2]
[332497880,1721274682778,-500.0,0.00022191,2]
[332497881,1721274682787,-500.0,0.00022191,2]
[332497882,1721274682796,-565.07,0.00022191,2]
[332497883,1721274682805,-500.0,0.00022191,2]
[332497884,1721274682815,-500.0,0.00022191,2]
[332497885,1721274682824,-500.0,0.00022191,2]
[332497886,1721274682833,-895.32,0.00022191,2]
[332497887,1721274682843,-500.0,0.00022191,2]
[332497888,1721274682852,-1762.38094445,0.00022191,2]
[332497889,1721274682861,-1633.46,0.00022191,2]
[332497890,1721274682871,-1137.65,0.00022191,2]
[332497891,1721274682880,-500.0,0.00022191,2]
[332497892,1721274682888,-500.0,0.00022191,2]
[332497893,1721274682898,-612.68,0.00022191,2]
[332497894,1721274682907,-540.79017798,0.00022191,2]
[332497895,1721274682917,-500.0,0.00022191,2]
[332497896,1721274682926,-856.32,0.00022191,2]
[332497897,1721274682935,-500.0,0.00022191,2]
[332497898,1721274682944,-500.0,0.00022191,2]
[332497899,1721274682953,-500.0,0.00022191,2]
[332497900,1721274682962,-572.77,0.00022191,2]
[332497901,1721274682971,-500.0,0.00022191,2]
[332497902,1721274682980,-500.0,0.00022191,2]
[332497903,1721274682990,-500.0,0.00022191,2]
[332497904,1721274682999,-1971.42,0.00022191,2]
[332497905,1721274683008,-500.0,0.00022191,2]
[332497906,1721274683018,-596.9,0.00022191,2]
[332497907,1721274683027,-747.73,0.00022191,2]
[332497908,1721274683036,-1022.86,0.00022191,2]
[332497909,1721274683045,-1120.58,0.00022191,2]
[332497910,1721274683054,-500.0,0.00022191,2]
[332497911,1721274683063,-500.0,0.00022191,2]
[332497912,1721274683072,-500.0,0.00022191,2]
[332497913,1721274683081,-502.47053257,0.00022191,2]
[332497914,1721274683090,-500.0,0.00022191,2]
[332497915,1721274683100,-500.0,0.00022191,2]
[332497916,1721274683109,-500.0,0.00022191,2]
[332497917,1721274683118,-584.11,0.00022191,2]
[332497918,1721274683126,-500.0,0.00022191,2]
[332497919,1721274683135,-532.95,0.00022191,2]
[332497920,1721274683148,-500.0,0.00022191,2]
[332497921,1721274683157,-500.0,0.00022191,2]
[332497922,1721274683166,-500.0,0.00022191,2]
[332497923,1721274683177,-204.71936953,0.00022191,2]
[332497924,1721274683186,-1598.57,0.00022191,2]
[332497925,1721274683195,-500.0,0.00022191,2]
[332497926,1721274683205,-1266.24,0.00022191,2]
[332497927,1721274683214,-747.48,0.00022191,2]
[332497928,1721274683223,-500.0,0.00022191,2]
[332497929,1721274683232,-500.0,0.00022191,2]
[332497930,1721274683242,-430.52815038,0.00022191,2]
[332497931,1721274683252,-515.69899911,0.00022191,2]
[332497932,1721274683261,-500.0,0.00022191,2]
[332497933,1721274683271,-500.0,0.00022191,2]
[332497934,1721274683280,-1713.2,0.00022191,2]
[332497935,1721274683289,-500.0,0.00022191,2]
[332497936,1721274683298,-500.0,0.00022191,2]
[332497937,1721274683310,-507.47400715,0.00022191,2]
[332497938,1721274683320,-500.0,0.00022191,2]
[332497939,1721274683329,-840.62,0.00022191,2]
[332497940,1721274683338,-1030.68,0.00022191,2]
[332497941,1721274683348,-500.0,0.00022191,2]
[332497942,1721274683357,-500.0,0.00022191,2]
[332497943,1721274683366,-500.0,0.00022191,2]
[332497944,1721274683375,-500.0,0.00022191,2]
[332497945,1721274683383,-262.95393445,0.00022191,2]
[332497946,1721274683393,-1680.96,0.00022191,2]
[332497947,1721274683402,-500.0,0.00022191,2]
[332497948,1721274683411,-500.0,0.00022191,2]
[332497949,1721274683421,-511.75903798,0.00022191,2]
[332497950,1721274683430,-500.0,0.00022191,2]
[332497951,1721274683440,-500.0,0.00022191,2]
[332497952,1721274683449,-571.43,0.00022191,2]
[332497953,1721274683459,-500.0,0.00022191,2]
[332497954,1721274683468,-500.0,0.00022191,2]
[332497955,1721274683477,-1337.9,0.00022191,2]
[332497956,1721274683486,-500.0,0.00022191,2]
[332497957,1721274683495,-876.11,0.00022191,2]
[332497958,1721274683504,-500.0,0.00022191,2]
[332497959,1721274683513,-568.11,0.00022191,2]
[332497960,1721274683523,-500.0,0.00022191,2]
[332497961,1721274683532,-816.31,0.00022191,2]
[332497962,1721274683542,-500.0,0.00022191,2]
[332497963,1721274683554,-1431.81,0.00022191,2]
[332497964,1721274683563,-500.0,0.00022191,2]
[332497965,1721274683572,-798.36,0.00022191,2]
[332497966,1721274683582,-500.0,0.00022191,2]
[332497967,1721274683591,-718.12,0.00022191,2]
[332497968,1721274683600,-500.0,0.00022191,2]
[332497969,1721274683609,-1226.23,0.00022191,2]
[332497970,1721274683619,-1202.48,0.00022191,2]
[332497971,1721274683628,-500.0,0.00022191,2]
[332497972,1721274683637,-500.0,0.00022191,2]
[332497973,1721274683647,-605.75,0.00022191,2]
[332497974,1721274683662,-500.0,0.00022191,2]
[332497975,1721274683671,-500.0,0.00022191,2]
[332497976,1721274683680,-500.0,0.00022191,2]
[332497977,1721274683689,-500.0,0.00022191,2]
[332497978,1721274683701,-1168.3,0.00022191,2]
[332497979,1721274683710,-868.0,0.00022191,2]
[332497980,1721274683719,-533.46633977,0.00022191,2]
[332497981,1721274683728,-779.49,0.00022191,2]
[332497982,1721274683738,-1124.79,0.00022191,2]
[332497983,1721274683748,-1662.06,0.00022191,2]
[332497984,1721274683759,-524.10173007,0.00022191,2]
[332497985,1721274683768,-500.0,0.00022191,2]
[332497986,1721274683778,-500.0,0.00022191,2]
[332497987,1721274683787,-500.0,0.00022191,2]
[332497988,1721274683797,-902.74,0.00022191,2]
[332497989,1721274683806,-1021.57,0.00022191,2]
[332497990,1721274683816,-863.66,0.00022191,2]
[332497991,1721274683825,-500.0,0.00022191,2]
[332497992,1721274683834,-528.84339834,0.00022191,2]
[332497993,1721274683843,-500.0,0.00022191,2]
[332497994,1721274683853,-500.0,0.00022191,2]
[332497995,1721274683862,-520.1588137,0.00022191,2]
[332497996,1721274683871,-765.13,0.00022191,2]
[332497997,1721274683880,-500.0,0.00022191,2]
[332497998,1721274683890,-500.0,0.00022191,2]
[332497999,1721274683900,-947.9,0.00022191,2]
[332498000,1721274683909,-425.15646515,0.00022191,2]
[332498001,1721274683919,-1522.72,0.00022191,2]
[332498002,1721274683928,-751.78,0.00022191,2]
[332498003,1721274683938,-500.0,0.00022191,2]
[332498004,1721274683948,-500.0,0.00022191,2]
[332498005,1721274683957,-500.0,0.00022191,2]
[332498006,1721274683967,-707.22,0.00022191,2]
[332498007,1721274683976,-1064.25,0.00022191,2]
[332498008,1721274683985,-518.88052302,0.00022191,2]
[332498009,1721274683994,-789.58,0.00022191,2]
[332498010,1721274684003,-1037.22,0.00022191,2]
[332498011,1721274684012,-2252.11,0.00022191,2]
[332498012,1721274684021,-500.0,0.00022191,2]
[332498013,1721274684031,-500.0,0.00022191,2]
[332498014,1721274684040,-500.0,0.00022191,2]
[332498015,1721274684049,-516.4220187,0.00022191,2]
[332498016,1721274684059,-500.0,0.00022191,2]
[332498017,1721274684068,-513.32048934,0.00022191,2]
[332498018,1721274684077,-3677.35,0.00022191,2]
[332498019,1721274684086,-1777.03,0.00022191,2]
[332498020,1721274684095,-500.0,0.00022191,2]
[332498021,1721274684105,-500.0,0.00022191,2]
[332498022,1721274684114,-500.0,0.00022191,2]
[332498023,1721274684124,-500.0,0.00022191,2]
[332498024,1721274684133,-500.0,0.00022191,2]
[332498025,1721274684142,-1044.91,0.00022191,2]
[332498026,1721274684151,-500.0,0.00022191,2]
[332498027,1721274684161,-500.0,0.00022191,2]
[332498028,1721274684171,-512.70058844,0.00022191,2]
[332498029,1721274684180,-1112.71,0.00022191,2]
[332498030,1721274684189,-500.0,0.00022191,2]
[332498031,1721274684198,-500.0,0.00022191,2]
[332498032,1721274684207,-500.0,0.00022191,2]
[332498033,1721274684216,-500.0,0.00022191,2]
[332498034,1721274684226,-626.2,0.00022191,2]
[332498035,1721274684235,-857.06,0.00022191,2]
[332498036,1721274684245,-500.0,0.00022191,2]
[332498037,1721274684254,-500.0,0.00022191,2]
[332498038,1721274684263,-891.38,0.00022191,2]
[332498039,1721274684272,-572.65,0.00022191,2]
[332498040,1721274684282,-549.66,0.00022191,2]
[332498041,1721274684292,-500.0,0.00022191,2]
[332498042,1721274684301,-1812.97,0.00022191,2]
[332498043,1721274684310,-500.0,0.00022191,2]
[332498044,1721274684319,-500.0,0.00022191,2]
[332498045,1721274684329,-500.0,0.00022191,2]
[332498046,1721274684339,-648.27,0.00022191,2]
[332498047,1721274684348,-841.21,0.00022191,2]
[332498048,1721274684358,-512.57187663,0.00022191,2]
[332498049,1721274684367,-500.0,0.00022191,2]
[332498050,1721274684377,-500.0,0.00022191,2]
[332498051,1721274684386,-500.0,0.00022191,2]
[332498052,1721274684396,-567.41059141,0.00022191,2]
[332498053,1721274684407,-581.4,0.00022191,2]
[332498054,1721274684417,-500.0,0.00022191,2]
[332498055,1721274684426,-756.63,0.00022191,2]
[332498056,1721274684436,-2220.46,0.00022191,2]
[332498057,1721274684445,-500.0,0.00022191,2]
[332498058,1721274684454,-2023.05,0.00022191,2]
[332498059,1721274684463,-500.0,0.00022191,2]
[332498060,1721274684472,-500.0,0.00022191,2]
[332498061,1721274684482,-745.45,0.00022191,2]
[332498062,1721274684491,-508.74334875,0.00022191,2]
[332498063,1721274684500,-934.7,0.00022191,2]
[332498064,1721274684511,-607.49,0.00022191,2]
[332498065,1721274684520,-1021.4,0.00022191,2]
[332498066,1721274684529,-919.66,0.00022191,2]
[332498067,1721274684725,-500.0,0.00022191,2]
[332498068,1721274684736,-1092.0,0.00022191,2]
[332498069,1721274684746,-500.0,0.00022191,2]
[332498070,1721274684755,-500.0,0.00022191,2]
[332498071,1721274684765,-1105.06,0.00022191,2]
[332498072,1721274684775,-908.55,0.00022191,2]
[332498073,1721274684786,-500.0,0.00022191,2]
[332498074,1721274684796,-500.0,0.00022191,2]
[332498075,1721274684806,-500.0,0.00022191,2]
[332498076,1721274684816,-500.0,0.00022191,2]
[332498077,1721274684825,-500.0,0.00022191,2]
[332498078,1721274684835,-500.0,0.00022191,2]
[332498079,1721274684845,-500.0,0.00022191,2]
[332498080,1721274684855,-526.58888272,0.00022191,2]
[332498081,1721274684865,-508.58,0.00022191,2]
[332498082,1721274684874,-631.91,0.00022191,2]
[332498083,1721274684883,-552.32,0.00022191,2]
[332498084,1721274684894,-500.0,0.00022191,2]
[332498085,1721274684904,-1581.33,0.00022191,2]
[332498086,1721274684914,-517.10202117,0.00022191,2]
[332498087,1721274684924,-500.0,0.00022191,2]
[332498088,1721274684934,-500.0,0.00022191,2]
[332498089,1721274684944,-709.67,0.00022191,2]
[332498090,1721274684954,-1266.8,0.00022191,2]
[332498091,1721274684963,-321.96192089,0.00022191,2]
[332498092,1721274684973,-1098.97,0.00022191,2]
[332498093,1721274684983,-880.16,0.00022191,2]
[332498094,1721274684992,-512.26513472,0.00022191,2]
[332498095,1721274685001,-486.6160249,0.00022191,2]
[332498096,1721274685011,-1402.13,0.00022191,2]
[332498097,1721274685020,-500.0,0.00022191,2]